bitfinex-derivatives/quotes_BTCF0:USTF0_20250509
["timestamp","ask_amount","ask_price","bid_price","bid_amount"]
[1746771929171,0.44892454,103160.0,103150.0,1.80127648]
[1746771929676,0.51287282,103160.0,103150.0,1.79037648]
[1746771930076,0.67287282,103160.0,103150.0,1.79037648]
[1746771930278,0.6016487,103160.0,103150.0,1.79037648]
[1746771930675,0.7955513,103160.0,103150.0,1.77947648]
[1746771930881,0.67287282,103160.0,103150.0,1.77947648]
[1746771931076,0.67287282,103160.0,103150.0,1.9272955]
[1746771931381,0.6016487,103160.0,103150.0,0.4272955]
[1746771931581,0.67287282,103160.0,103150.0,0.4272955]
[1746771931783,0.59679814,103160.0,103150.0,0.4272955]
[1746771931973,0.66802226,103160.0,103150.0,0.4588955]
[1746771932485,0.59679814,103160.0,103150.0,0.4588955]
[1746771932681,0.66802226,103160.0,103150.0,0.4588955]
[1746771933077,0.59679814,103160.0,103150.0,0.4588955]
[1746771934085,0.40639814,103160.0,103150.0,0.4588955]
[1746771934779,0.40185075,103160.0,103150.0,0.4588955]
[1746771935174,0.56185075,103160.0,103150.0,0.4553955]
[1746771935987,0.56185075,103160.0,103150.0,0.44787242]
[1746771936181,0.40185075,103160.0,103150.0,0.44787242]
[1746771937185,0.40185075,103160.0,103150.0,0.44567242]
[1746771937387,0.43425075,103160.0,103150.0,0.44567242]
[1746771937886,0.43425075,103160.0,103150.0,0.44570385]
[1746771938383,0.04105075,103160.0,103150.0,0.80650385]
[1746771939790,0.04105075,103160.0,103150.0,0.85596765]
[1746771940084,0.03377565,103160.0,103150.0,0.85596765]
[1746771940277,0.03377565,103160.0,103150.0,0.87546765]
[1746771941286,0.03377565,103160.0,103150.0,0.8641906]
[1746771941588,0.10499977,103160.0,103150.0,0.8636858]
[1746771941989,0.03619565,103160.0,103150.0,0.8636858]
[1746771943083,0.06639565,103160.0,103150.0,0.8636858]
[1746771945293,0.03619565,103160.0,103150.0,0.8636858]
[1746771947291,0.03134557,103160.0,103150.0,0.8636858]
[1746771948285,0.02452517,103160.0,103150.0,0.8636858]
[1746771948479,0.02452517,103160.0,103150.0,0.86358858]
[1746771950287,0.01725009,103160.0,103150.0,0.86358858]
[1746771950479,0.03282,103160.0,103150.0,0.86340477]
[1746771953188,0.06572,103160.0,103150.0,0.86340477]
[1746771953388,0.14695,103160.0,103150.0,0.86340477]
[1746771955990,0.08405,103160.0,103150.0,0.86326294]
[1746771956892,0.05365,103160.0,103150.0,0.93448706]
[1746771957097,0.05365,103160.0,103150.0,1.06448706]
[1746771957396,0.05365,103160.0,103150.0,0.86326294]
[1746771957697,0.14905,103160.0,103150.0,0.85237917]
[1746771957895,0.14905,103160.0,103150.0,0.49157917]
[1746771958198,0.14905,103160.0,103150.0,0.4806906]
[1746771958897,0.14905,103160.0,103150.0,0.43106946]
[1746771959695,0.11715,103160.0,103150.0,0.43106946]
[1746771959896,0.08595,103160.0,103150.0,0.43106946]
[1746771960092,0.08595,103160.0,103150.0,0.79186946]
[1746771960498,0.07867502,103160.0,103150.0,0.79186946]
[1746771960696,0.07867502,103160.0,103150.0,0.86309358]
[1746771961891,0.07867502,103160.0,103150.0,0.91271472]
[1746771962598,0.0738251,103160.0,103150.0,0.91271472]
[1746771962898,0.0415251,103160.0,103150.0,0.91271472]
[1746771963093,0.03470505,103160.0,103150.0,1.34367951]
[1746771963295,0.03470505,103160.0,103150.0,1.41490363]
[1746771963696,0.03470505,103160.0,103150.0,2.84367951]
[1746771964093,0.03470505,103160.0,103150.0,3.42970843]
[1746771964998,0.03470505,103160.0,103150.0,3.43170843]
[1746771965197,0.03470505,103160.0,103150.0,3.42074364]
[1746771965599,0.03470505,103160.0,103150.0,3.42274364]
[1746771966203,0.03470505,103160.0,103150.0,3.43378146]
[1746771967595,0.03470505,103160.0,103150.0,3.36255734]
[1746771967800,0.02500586,103160.0,103150.0,3.43378146]
[1746771968002,0.02500586,103160.0,103150.0,3.36256738]
[1746771968205,0.02500586,103160.0,103150.0,3.42274364]
[1746771968504,0.09632,103170.0,103160.0,0.1939026]
[1746771968693,0.09632,103170.0,103160.0,0.93202672]
[1746771969094,0.09632,103170.0,103160.0,0.8608026]
[1746771969294,0.09632,103170.0,103160.0,2.44718163]
[1746771969799,0.09632,103170.0,103160.0,2.37595751]
[1746771970105,0.09632,103170.0,103160.0,2.44718163]
[1746771970895,0.03512,103170.0,103160.0,2.44718163]
[1746771971097,0.00272,103170.0,103160.0,2.44718163]
[1746771971299,0.00272,103170.0,103160.0,2.45822278]
[1746771971494,0.00272,103170.0,103160.0,2.45922278]
[1746771971703,0.00272,103170.0,103160.0,2.65595071]
[1746771972595,0.00242,103170.0,103160.0,2.65595071]
[1746771972797,1.1035,103180.0,103170.0,0.1938838]
[1746771972997,1.1035,103180.0,103170.0,0.38428437]
[1746771973309,1.2635,103180.0,103170.0,0.38428437]
[1746771973604,1.2635,103180.0,103170.0,0.39943928]
[1746771974193,1.2635,103180.0,103170.0,0.54696783]
[1746771975305,0.7437,103180.0,103170.0,0.54696783]
[1746771975600,1.00878912,103180.0,103170.0,0.54696783]
[1746771976107,1.16878912,103180.0,103170.0,0.54896783]
[1746771976302,0.2236,103180.0,103170.0,0.62219195]
[1746771976494,0.2236,103180.0,103170.0,0.83219195]
[1746771976698,0.2236,103180.0,103170.0,0.65219195]
[1746771976898,0.2236,103180.0,103170.0,0.65251691]
[1746771977099,0.2236,103180.0,103170.0,1.01331691]
[1746771977304,0.0636,103180.0,103170.0,1.03331691]
[1746771977602,0.05223473,103180.0,103170.0,1.03331691]
[1746771977801,0.05223473,103180.0,103170.0,1.23331691]
[1746771978306,0.36322,103190.0,103180.0,0.193865]
[1746771978502,0.39352,103190.0,103180.0,0.29983053]
[1746771979307,0.39352,103190.0,103180.0,0.31498544]
[1746771979502,0.03272,103190.0,103180.0,0.31598544]
[1746771979804,0.00242,103190.0,103180.0,1.15676223]
[1746771980007,0.00242,103190.0,103180.0,1.49676223]
[1746771980197,0.00242,103190.0,103180.0,1.58553811]
[1746771980509,0.00242,103190.0,103180.0,3.13151399]
[1746771980709,0.00242,103190.0,103180.0,3.27396223]
[1746771981309,0.00242,103190.0,103180.0,3.20273811]
[1746771981500,0.00242,103190.0,103180.0,3.31977811]
[1746771981807,0.00242,103190.0,103180.0,3.39300223]
[1746771982003,0.00242,103190.0,103180.0,3.39400223]
[1746771982209,1e-07,103190.0,103180.0,3.39400223]
[1746771982709,1e-07,103190.0,103180.0,3.44320219]
[1746771983102,1e-07,103190.0,103180.0,3.20896219]
[1746771983309,1e-07,103190.0,103180.0,3.44432219]
[1746771983506,0.001,103210.0,103180.0,3.25045719]
[1746771983701,0.45898818,103280.0,103260.0,0.1937148]
[1746771983901,0.45898818,103280.0,103260.0,0.20459812]
[1746771983902,0.43202412,103280.0,103260.0,0.20459812]
[1746771984104,0.43202412,103280.0,103260.0,0.42489812]
[1746771984105,0.46382412,103280.0,103260.0,0.42489812]
[1746771984300,0.3939,103270.0,103260.0,1.94005303]
[1746771984499,0.46512412,103270.0,103260.0,0.42916971]
[1746771984706,0.65882022,103270.0,103260.0,0.37983112]
[1746771984903,0.68972022,103270.0,103260.0,0.37983078]
[1746771985105,0.68972022,103270.0,103260.0,0.02611598]
[1746771985106,0.92094434,103270.0,103260.0,0.02611598]
[1746771985302,1.09972022,103270.0,103260.0,0.00425491]
[1746771985502,0.1937148,103260.0,103250.0,0.28394101]
[1746771985706,0.69445602,103260.0,103250.0,0.28394101]
[1746771985901,0.83976592,103260.0,103250.0,0.1937336]
[1746771986097,0.489463,103260.0,103240.0,0.126976]
[1746771986302,0.91952912,103260.0,103250.0,0.1937336]
[1746771986712,0.8113879,103260.0,103250.0,0.1937336]
[1746771986912,0.8113879,103260.0,103250.0,0.1957336]
[1746771987111,1.37451834,103260.0,103250.0,0.1977336]
[1746771987608,0.9082359,103260.0,103250.0,0.1977336]
[1746771987798,1.12451834,103260.0,103250.0,0.21261129]
[1746771988004,1.15691834,103260.0,103250.0,0.21061129]
[1746771988515,1.15691834,103260.0,103250.0,0.20861129]
[1746771988907,0.1937336,103250.0,103240.0,0.34359287]
[1746771989108,0.85437482,103250.0,103240.0,0.53734527]
[1746771989416,1.20123082,103250.0,103240.0,0.52644527]
[1746771989610,1.20123082,103250.0,103240.0,0.39048091]
[1746771989812,0.1937711,103230.0,103220.0,0.00145321]
[1746771990007,1.13165354,103230.0,103220.0,0.16020189]
[1746771990213,1.42022954,103230.0,103220.0,0.14534311]
[1746771990413,1.42022954,103230.0,103220.0,0.14384311]
[1746771990608,1.42022954,103230.0,103220.0,0.13294311]
[1746771990809,0.1937899,103220.0,103210.0,0.43007066]
[1746771991013,0.69443112,103220.0,103210.0,0.13937106]
[1746771991211,1.06835512,103220.0,103210.0,0.09347106]
[1746771991516,1.31835512,103220.0,103210.0,0.27637976]
[1746771991715,1.31835512,103220.0,103200.0,0.39151799]
[1746771991716,0.1938087,103210.0,103200.0,0.39151799]
[1746771992017,0.66274992,103210.0,103200.0,0.38061799]
[1746771992215,0.81150471,103210.0,103200.0,0.38061799]
[1746771992514,0.91964593,103210.0,103200.0,0.38061799]
[1746771992908,0.91964593,103210.0,103200.0,0.38361799]
[1746771993105,0.81150471,103210.0,103200.0,0.1968205]
[1746771993311,0.91964593,103210.0,103200.0,0.1968205]
[1746771993614,0.91964593,103210.0,103200.0,0.2008205]
[1746771993916,0.91964593,103210.0,103200.0,0.21556272]
[1746771994315,0.81150471,103210.0,103200.0,0.21556272]
[1746771994620,0.91964593,103210.0,103200.0,0.20466272]
[1746771994807,0.91964593,103210.0,103200.0,0.19376272]
[1746771995005,0.84240471,103210.0,103200.0,0.19376272]
[1746771995210,0.95054593,103210.0,103200.0,0.19376272]
[1746771995409,0.84240471,103210.0,103200.0,0.22556272]
[1746771995615,0.85364992,103210.0,103200.0,0.22556272]
[1746771996025,0.85364992,103210.0,103200.0,0.25576272]
[1746771996412,0.85364992,103210.0,103200.0,0.22396272]
[1746771996617,0.85364992,103210.0,103200.0,0.19376272]
[1746771996812,0.88564992,103210.0,103200.0,0.19376272]
[1746771997511,0.88564992,103210.0,103200.0,0.24016016]
[1746771999115,0.88564992,103210.0,103200.0,0.22556272]
[1746772000315,0.7775087,103210.0,103200.0,0.22556272]
[1746772000517,0.88564992,103210.0,103200.0,0.22556272]
[1746772001509,0.88564992,103210.0,103200.0,0.27083707]
[1746772001714,0.88564992,103210.0,103200.0,0.30123707]
[1746772002216,0.72564992,103210.0,103200.0,0.30123707]
[1746772002516,0.66274992,103210.0,103200.0,0.31205408]
[1746772002717,1.2660924,103220.0,103210.0,0.1938087]
[1746772002918,1.37423362,103220.0,103210.0,0.26822571]
[1746772003115,1.4588924,103220.0,103210.0,0.26822571]
[1746772003422,1.4588924,103220.0,103210.0,0.28290006]
[1746772003722,1.56703362,103220.0,103210.0,0.28290006]
[1746772003912,1.56703362,103220.0,103210.0,0.28490006]
[1746772004108,0.7797924,103220.0,103210.0,0.28490006]
[1746772004319,0.88793362,103220.0,103210.0,0.28490006]
[1746772004817,0.7797924,103220.0,103210.0,0.28490006]
[1746772005017,0.88793362,103220.0,103210.0,0.28496099]
[1746772005218,0.88793362,103220.0,103210.0,0.28596099]
[1746772006121,0.88793362,103220.0,103210.0,0.05995229]
[1746772006422,0.98481762,103220.0,103210.0,0.02855229]
[1746772006620,0.88793362,103220.0,103210.0,0.01765229]
[1746772007419,0.7797924,103220.0,103210.0,0.21146099]
[1746772007622,0.7797924,103220.0,103210.0,0.24296099]
[1746772007812,0.7797924,103220.0,103210.0,0.27596099]
[1746772008019,0.88793362,103220.0,103210.0,0.27596099]
[1746772008321,0.72793362,103220.0,103210.0,0.27596099]
[1746772010423,0.6197924,103220.0,103210.0,0.26508305]
[1746772010622,0.72793362,103220.0,103210.0,0.2760351]
[1746772010826,0.6197924,103220.0,103210.0,0.2760351]
[1746772011123,0.72793362,103220.0,103210.0,0.2760351]
[1746772011721,0.6197924,103220.0,103210.0,0.2760351]
[1746772011924,0.72793362,103220.0,103210.0,0.2760351]
[1746772012417,0.72793362,103220.0,103210.0,0.27619859]
[1746772012921,0.6197924,103220.0,103210.0,0.27619859]
[1746772013120,0.72793362,103220.0,103210.0,0.27619859]
[1746772013320,0.5545924,103220.0,103210.0,0.27619859]
[1746772013822,0.66273362,103220.0,103210.0,0.27619859]
[1746772014224,0.5545924,103220.0,103210.0,0.27615651]
[1746772015927,0.5545924,103220.0,103210.0,0.27644592]
[1746772016516,0.1937924,103220.0,103210.0,0.27644592]
[1746772016916,0.30193362,103220.0,103210.0,0.27644592]
[1746772017119,0.1937924,103220.0,103210.0,0.27644592]
[1746772017325,0.18894466,103220.0,103210.0,0.27644592]
[1746772017629,0.18894466,103220.0,103210.0,0.27644493]
[1746772019722,0.29708588,103220.0,103210.0,0.27644493]
[1746772020427,0.18894466,103220.0,103210.0,0.27644493]
[1746772020630,0.29708588,103220.0,103210.0,0.27644493]
[1746772020930,0.18894466,103220.0,103210.0,0.27644493]
[1746772021528,0.29708588,103220.0,103210.0,0.27644493]
[1746772022322,0.29708588,103220.0,103210.0,0.27633456]
[1746772022527,0.18894466,103220.0,103210.0,0.27633456]
[1746772023030,0.3921,103230.0,103220.0,0.1937899]
[1746772023224,0.3608,103230.0,103220.0,0.37538263]
[1746772023526,0.3608,103230.0,103220.0,0.30121576]
[1746772023731,0.47024122,103240.0,103230.0,0.1937711]
[1746772023931,0.3621,103240.0,103230.0,0.26732261]
[1746772024127,0.00242,103240.0,103230.0,0.89626383]
[1746772024333,0.75953222,103260.0,103250.0,0.1937336]
[1746772024630,0.75953222,103260.0,103250.0,0.20865946]
[1746772024827,0.75953222,103260.0,103250.0,0.27095946]
[1746772025130,0.875391,103260.0,103250.0,0.27095946]
[1746772025429,1.09417344,103260.0,103250.0,0.07732586]
[1746772025839,1.09417344,103260.0,103250.0,0.2711673]
[1746772026932,0.877891,103260.0,103250.0,0.0151337]
[1746772027131,0.1937336,103250.0,103240.0,0.033]
[1746772027335,0.72657482,103250.0,103240.0,0.23811257]
[1746772027534,0.72657482,103250.0,103240.0,0.2579524]
[1746772028134,0.88657482,103250.0,103240.0,0.2579524]
[1746772028634,0.88657482,103250.0,103240.0,0.0642]
[1746772028935,0.1937711,103230.0,103220.0,0.2250762]
[1746772029136,1.13165354,103230.0,103220.0,0.2250762]
[1746772029339,1.24631232,103230.0,103220.0,0.2250762]
[1746772029635,1.35445354,103230.0,103220.0,0.2250762]
[1746772030037,1.35445354,103230.0,103220.0,0.2280762]
[1746772030230,1.1381711,103230.0,103220.0,0.2171762]
[1746772030435,1.24631232,103230.0,103220.0,0.2171762]
[1746772030630,1.1381711,103230.0,103220.0,0.2171762]
[1746772030831,1.24631232,103230.0,103220.0,0.2171762]
[1746772031036,1.24631232,103230.0,103220.0,0.2211762]
[1746772031438,1.24631232,103230.0,103220.0,0.2181762]
[1746772031737,1.24631232,103230.0,103220.0,0.2141762]
[1746772031938,1.24631232,103230.0,103220.0,0.2784762]
[1746772032142,1.1381711,103230.0,103220.0,0.2784762]
[1746772032638,1.24631232,103230.0,103220.0,0.2784762]
[1746772032939,1.1381711,103230.0,103220.0,0.2784762]
[1746772033127,1.08631232,103230.0,103220.0,0.2784762]
[1746772033326,0.9471711,103230.0,103220.0,0.2784762]
[1746772033532,0.9153711,103230.0,103220.0,0.2784762]
[1746772034132,1.01139318,103230.0,103220.0,0.2784762]
[1746772034340,1.07679318,103230.0,103220.0,0.2784899]
[1746772034540,0.99985196,103230.0,103220.0,0.2804899]
[1746772034842,1.10799318,103230.0,103220.0,0.2804899]
[1746772035030,0.99985196,103230.0,103220.0,0.2804899]
[1746772035230,1.20399318,103230.0,103220.0,0.2814899]
[1746772035442,1.09585196,103230.0,103220.0,0.2814899]
[1746772035741,1.09585196,103230.0,103220.0,0.2695899]
[1746772036341,1.09585196,103230.0,103220.0,0.2675899]
[1746772037040,1.12675196,103230.0,103220.0,0.2566899]
[1746772037435,1.23489318,103230.0,103220.0,0.2566899]
[1746772037742,1.12675196,103230.0,103220.0,0.2566899]
[1746772037941,1.26739318,103230.0,103220.0,0.2586899]
[1746772038140,0.99925196,103230.0,103220.0,0.2586899]
[1746772038440,1.07489318,103230.0,103220.0,0.2586899]
[1746772038644,0.96675196,103230.0,103220.0,0.2596899]
[1746772039141,1.12675196,103230.0,103220.0,0.27105174]
[1746772039539,1.06325196,103230.0,103220.0,0.2862008]
[1746772039742,1.06325196,103230.0,103220.0,0.39434202]
[1746772039932,1.05416258,103230.0,103220.0,0.2862008]
[1746772040134,0.70039148,103230.0,103220.0,0.3193008]
[1746772040341,0.70039148,103230.0,103220.0,0.42744202]
[1746772040539,0.6538674,103240.0,103230.0,0.1937711]
[1746772040736,0.6538674,103240.0,103230.0,0.25843294]
[1746772040932,0.5569865,103240.0,103230.0,0.273582]
[1746772041139,0.36322,103240.0,103230.0,0.273582]
[1746772041537,0.00242,103240.0,103230.0,0.273582]
[1746772041736,0.1961724,103240.0,103230.0,0.273582]
[1746772042137,0.00242,103240.0,103230.0,0.273582]
[1746772043241,0.1961724,103240.0,103230.0,0.273582]
[1746772043639,0.69601362,103240.0,103230.0,0.0907109]
[1746772043840,0.69601362,103240.0,103230.0,0.0576109]
[1746772043841,0.6512724,103240.0,103230.0,0.0576109]
[1746772044146,0.91941362,103240.0,103230.0,0.0576109]
[1746772044444,0.91941362,103240.0,103230.0,0.251382]
[1746772044639,0.8112724,103240.0,103230.0,0.0576109]
[1746772044839,0.91941362,103240.0,103230.0,0.0576109]
[1746772046044,1.12442284,103240.0,103230.0,0.0576109]
[1746772046538,0.8112724,103240.0,103230.0,0.04624906]
[1746772046744,0.91941362,103240.0,103230.0,0.24002016]
[1746772046943,0.91941362,103240.0,103230.0,0.03534906]
[1746772047140,1.12442284,103240.0,103230.0,0.01514906]
[1746772047537,1.01628162,103240.0,103230.0,0.02600914]
[1746772047932,1.01628162,103240.0,103230.0,0.02590914]
[1746772048544,0.91941362,103240.0,103230.0,0.02590914]
[1746772049244,0.8112724,103240.0,103230.0,0.02590914]
[1746772049645,0.91941362,103240.0,103230.0,0.02590914]
[1746772049846,0.91941362,103240.0,103230.0,0.05750914]
[1746772050849,0.91941362,103240.0,103230.0,0.05751467]
[1746772051345,0.8112724,103240.0,103230.0,0.05751467]
[1746772051545,0.91941362,103240.0,103230.0,0.05751467]
[1746772051850,0.8112724,103240.0,103230.0,0.25128577]
[1746772052149,0.91941362,103240.0,103230.0,0.02591467]
[1746772052340,0.8112724,103240.0,103230.0,0.02591467]
[1746772052536,0.8112724,103240.0,103230.0,0.02585223]
[1746772052738,0.91941362,103240.0,103230.0,0.02585223]
[1746772052941,1.02755484,103240.0,103230.0,0.01495223]
[1746772053140,0.1937711,103230.0,103220.0,0.01185]
[1746772053340,0.83395354,103230.0,103220.0,0.01185]
[1746772053547,0.1937899,103220.0,103210.0,0.0347067]
[1746772053841,0.75258291,103220.0,103210.0,0.0347067]
[1746772054242,0.91258291,103220.0,103210.0,0.0347067]
[1746772054436,0.91258291,103220.0,103210.0,0.2285154]
[1746772054643,0.91258291,103220.0,103210.0,0.0347067]
[1746772054843,0.91258291,103220.0,103210.0,0.2285154]
[1746772055043,0.91258291,103220.0,103210.0,0.0347067]
[1746772055449,0.80444169,103220.0,103210.0,0.0347067]
[1746772055749,0.91258291,103220.0,103210.0,0.0377067]
[1746772056151,0.91258291,103220.0,103210.0,0.2315154]
[1746772056451,0.80444169,103220.0,103210.0,0.2355154]
[1746772056750,0.91258291,103220.0,103210.0,0.2355154]
[1746772056946,0.91258291,103220.0,103210.0,0.0417067]
[1746772057448,0.91258291,103220.0,103210.0,0.0308067]
[1746772057648,0.91258291,103220.0,103210.0,0.2569154]
[1746772058050,0.91258291,103220.0,103210.0,0.2773154]
[1746772058651,0.91258291,103220.0,103210.0,0.2664154]
[1746772058850,0.91258291,103220.0,103210.0,0.2555154]
[1746772059150,0.91258291,103220.0,103210.0,0.0313]
[1746772059741,0.1938087,103210.0,103200.0,0.2432987]
[1746772059939,0.72474992,103210.0,103200.0,0.2432987]
[1746772060151,0.88474992,103210.0,103200.0,0.2323987]
[1746772060352,0.88474992,103210.0,103200.0,0.2266275]
[1746772060842,0.88474992,103210.0,103200.0,0.2157275]
[1746772061239,0.88574992,103210.0,103200.0,0.2157275]
[1746772061746,0.99389114,103210.0,103200.0,0.0219]
[1746772062049,0.1938463,103190.0,103180.0,0.2423114]
[1746772062249,1.18358752,103190.0,103180.0,0.3067114]
[1746772062449,1.1374463,103190.0,103180.0,0.3067114]
[1746772062643,1.24558752,103190.0,103180.0,0.3067114]
[1746772062947,1.24800752,103190.0,103180.0,0.3067114]
[1746772063151,1.08800752,103190.0,103180.0,0.3067114]
[1746772063452,1.08800752,103190.0,103180.0,0.3077114]
[1746772063649,1.08800752,103190.0,103180.0,0.0654]
[1746772064051,1.08800752,103190.0,103180.0,0.27358729]
[1746772064251,1.1398663,103190.0,103180.0,0.27358729]
[1746772064452,1.1398663,103190.0,103180.0,0.01532229]
[1746772064853,1.24800752,103190.0,103180.0,0.01532229]
[1746772065042,1.1398663,103190.0,103180.0,0.01732229]
[1746772065250,1.24800752,103190.0,103180.0,0.01732229]
[1746772066547,1.1398663,103190.0,103180.0,0.01732229]
[1746772066752,1.38200752,103190.0,103180.0,0.01732229]
[1746772067554,1.2738663,103190.0,103180.0,0.01732229]
[1746772067749,1.38200752,103190.0,103180.0,0.01732229]
[1746772068546,1.38400752,103190.0,103180.0,0.01532229]
[1746772069559,1.38700752,103190.0,103180.0,0.01432229]
[1746772069856,1.38700752,103190.0,103180.0,0.0948]
[1746772070153,1.2788663,103190.0,103180.0,0.288665]
[1746772070754,1.38700752,103190.0,103180.0,0.288665]
[1746772071156,1.22700752,103190.0,103180.0,0.288665]
[1746772071950,1.1188663,103190.0,103180.0,0.288665]
[1746772072155,1.22700752,103190.0,103180.0,0.288665]
[1746772072452,1.22700752,103190.0,103180.0,0.258665]
[1746772072653,1.22700752,103190.0,103180.0,0.193865]
[1746772073053,1.38700752,103190.0,103180.0,0.224265]
[1746772073251,1.38700752,103190.0,103180.0,0.285465]
[1746772073561,1.38700752,103190.0,103180.0,0.3003415]
[1746772073950,1.1139663,103190.0,103180.0,0.3003415]
[1746772074157,0.9539663,103190.0,103180.0,0.4603415]
[1746772074357,1.06210752,103190.0,103180.0,0.4603415]
[1746772074959,0.9539663,103190.0,103180.0,0.4603415]
[1746772075159,1.06210752,103190.0,103180.0,0.4603415]
[1746772075557,1.06010752,103190.0,103180.0,0.4603415]
[1746772075752,1.05910752,103190.0,103180.0,0.4603415]
[1746772077261,0.9509663,103190.0,103180.0,0.3003415]
[1746772077566,1.05910752,103190.0,103180.0,0.3003415]
[1746772078262,0.9509663,103190.0,103180.0,0.31497568]
[1746772078762,1.05910752,103190.0,103180.0,0.31497568]
[1746772079264,0.9509663,103190.0,103180.0,0.31497568]
[1746772079562,1.05910752,103190.0,103180.0,0.31497568]
[1746772081461,1.05910752,103190.0,103180.0,0.12111068]
[1746772081669,1.09090752,103190.0,103180.0,0.31497568]
[1746772081865,1.12140752,103190.0,103180.0,0.12111068]
[1746772082166,1.28140752,103190.0,103180.0,0.02951068]
[1746772082370,1.1732663,103190.0,103180.0,0.02951068]
[1746772082569,1.28140752,103190.0,103180.0,0.0148765]
[1746772082770,0.193865,103180.0,103170.0,0.34780544]
[1746772083066,0.72720622,103180.0,103170.0,0.34202544]
[1746772083271,0.72720622,103180.0,103170.0,0.09967694]
[1746772084171,1.56630622,103180.0,103170.0,0.09967694]
[1746772084368,1.56630622,103180.0,103170.0,0.10067694]
[1746772084576,1.56630622,103180.0,103170.0,0.10167694]
[1746772085370,1.458165,103180.0,103170.0,0.10167694]
[1746772085670,1.56630622,103180.0,103170.0,0.07047694]
[1746772086084,1.56830622,103180.0,103170.0,0.00387694]
[1746772087578,0.1938644,103170.0,103160.0,0.00578]
[1746772087779,0.87635338,103170.0,103160.0,0.00578]
[1746772087988,0.86654684,103170.0,103160.0,0.00578]
[1746772088281,1.02654684,103170.0,103160.0,0.00578]
[1746772088477,1.02896684,103170.0,103160.0,0.00578]
[1746772088884,1.02896684,103170.0,103160.0,0.00678]
[1746772089081,0.8126844,103170.0,103160.0,0.001]
[1746772089273,1.02896684,103170.0,103160.0,0.002]
[1746772089477,0.8126844,103170.0,103160.0,0.002]
[1746772089673,1.02896684,103170.0,103160.0,0.002]
[1746772090781,1.02896684,103170.0,103160.0,0.001]
[1746772090983,1.02996684,103170.0,103160.0,0.001]
[1746772091287,0.1938832,103160.0,103150.0,0.3383773]
[1746772091487,1.2663832,103160.0,103150.0,0.3077773]
[1746772091680,1.37452442,103160.0,103150.0,0.3077773]
[1746772091994,1.2663832,103160.0,103150.0,0.32219558]
[1746772092180,1.37452442,103160.0,103150.0,0.32219558]
[1746772092579,1.37552442,103160.0,103150.0,0.32219558]
[1746772092780,1.2673832,103160.0,103150.0,0.32219558]
[1746772092989,1.37552442,103160.0,103150.0,0.32219558]
[1746772093189,1.37652442,103160.0,103150.0,0.32219558]
[1746772093988,1.2683832,103160.0,103150.0,0.32219558]
[1746772094181,1.37652442,103160.0,103150.0,0.32219558]
[1746772095381,1.2683832,103160.0,103150.0,0.32219558]
[1746772095987,1.37652442,103160.0,103150.0,0.32219558]
[1746772097890,1.2683832,103160.0,103150.0,0.32219558]
[1746772098085,1.37652442,103160.0,103150.0,0.32219558]
[1746772098893,1.40902442,103160.0,103150.0,0.32219558]
[1746772099484,1.3008832,103160.0,103150.0,0.32219558]
[1746772099684,1.40902442,103160.0,103150.0,0.32219558]
[1746772100083,1.40802442,103160.0,103150.0,0.32319558]
[1746772100284,1.40702442,103160.0,103150.0,0.32419558]
[1746772101295,1.2988832,103160.0,103150.0,0.32419558]
[1746772101986,1.40702442,103160.0,103150.0,0.32419558]
[1746772103596,1.04622442,103160.0,103150.0,0.32419558]
[1746772103796,1.40702442,103160.0,103150.0,0.32419558]
[1746772106295,1.2988832,103160.0,103150.0,0.32419558]
[1746772106697,1.40702442,103160.0,103150.0,0.32419558]
[1746772107092,1.2988832,103160.0,103150.0,0.32419558]
[1746772107291,1.40702442,103160.0,103150.0,0.32419558]
[1746772107489,1.2988832,103160.0,103150.0,0.32419558]
[1746772107692,1.40702442,103160.0,103150.0,0.32419558]
[1746772108194,1.40702442,103160.0,103150.0,0.35479558]
[1746772108497,1.40702442,103160.0,103150.0,0.30632028]
[1746772109094,1.43962442,103160.0,103150.0,0.30632028]
[1746772109699,1.3314832,103160.0,103150.0,0.30632028]
[1746772109903,1.43962442,103160.0,103150.0,0.30532028]
[1746772110191,1.44062442,103160.0,103150.0,0.30532028]
[1746772110998,1.3324832,103160.0,103150.0,0.30532028]
[1746772111200,1.44062442,103160.0,103150.0,0.30532028]
[1746772111498,1.44162442,103160.0,103150.0,0.30432028]
[1746772112101,1.60062442,103160.0,103150.0,0.30432028]
[1746772112301,1.60162442,103160.0,103150.0,0.11041828]
[1746772112498,1.4934832,103160.0,103150.0,0.30432028]
[1746772112694,1.60162442,103160.0,103150.0,0.30432028]
[1746772113096,1.44162442,103160.0,103150.0,0.11041828]
[1746772114000,1.3334832,103160.0,103150.0,0.11041828]
[1746772114193,1.60162442,103160.0,103150.0,0.11041828]
[1746772114800,1.60162442,103160.0,103150.0,0.30432028]
[1746772115401,1.4934832,103160.0,103150.0,0.30432028]
[1746772115995,1.60162442,103160.0,103150.0,0.30432028]
[1746772116395,1.4934832,103160.0,103150.0,0.30432028]
[1746772116594,1.60162442,103160.0,103150.0,0.30432028]
[1746772118202,1.4934832,103160.0,103150.0,0.30432028]
[1746772118603,1.60162442,103160.0,103150.0,0.30432028]
[1746772119210,1.44162442,103160.0,103150.0,0.30432028]
[1746772119509,1.3008832,103160.0,103150.0,0.30432028]
[1746772119704,1.40902442,103160.0,103150.0,0.30432028]
[1746772120503,1.3008832,103160.0,103150.0,0.30432028]
[1746772120696,1.40902442,103160.0,103150.0,0.30432028]
[1746772121403,1.3008832,103160.0,103150.0,0.30432028]
[1746772121808,1.37198858,103160.0,103150.0,0.30432028]
[1746772122709,1.3008832,103160.0,103150.0,0.30432028]
[1746772123009,1.37198858,103160.0,103150.0,0.30432028]
[1746772123410,1.37198858,103160.0,103150.0,0.45192202]
[1746772123608,1.3008832,103160.0,103150.0,0.45192202]
[1746772123910,1.37198858,103160.0,103150.0,0.45192202]
[1746772124407,1.37198858,103160.0,103150.0,0.46680481]
[1746772125107,1.37198858,103160.0,103150.0,0.45192202]
[1746772127810,1.3008832,103160.0,103150.0,0.45192202]
[1746772128010,1.37198858,103160.0,103150.0,0.45192202]
[1746772129012,1.3008832,103160.0,103150.0,0.45192202]
[1746772129210,1.37198858,103160.0,103150.0,0.45192202]
[1746772130514,1.3008832,103160.0,103150.0,0.45192202]
[1746772130714,1.37198858,103160.0,103150.0,0.45192202]
[1746772131308,1.37198858,103160.0,103150.0,0.46689008]
[1746772132113,1.3008832,103160.0,103150.0,0.46689008]
[1746772132317,1.37198858,103160.0,103150.0,0.46689008]
[1746772133209,1.37198858,103160.0,103150.0,0.62689008]
[1746772133410,1.3008832,103160.0,103150.0,0.62689008]
[1746772133713,1.37198858,103160.0,103150.0,0.62689008]
[1746772133905,1.36713765,103160.0,103150.0,0.62689008]
[1746772134117,1.36713765,103160.0,103150.0,0.46689008]
[1746772134417,1.29603227,103160.0,103150.0,0.46689008]
[1746772134620,1.36713765,103160.0,103150.0,0.46689008]
[1746772135323,1.29603227,103160.0,103150.0,0.46689008]
[1746772135820,1.36713765,103160.0,103150.0,0.46708119]